[Event "Early-Titled-Tuesday-Blitz-March-05-2024"]
[Site "Chess.com"]
[Date "2024.03.05"]
[Round "4"]
[White "Polish_fighter3000"]
[Black "ContrVersia"]
[Result "1-0"]
[WhiteElo "3116"]
[BlackElo "2871"]
[TimeControl "180+1"]
[EndTime "8:42:09 PST"]
[Termination "Polish_fighter3000 won on time"]

1. e4 {[%clk 0:03:00.9]} 1... c5 {[%clk 0:02:59.4]} 2. Nf3 {[%clk 0:02:59.5]}
2... a6 {[%clk 0:02:59.6]} 3. c3 {[%clk 0:02:58.4]} 3... e6 {[%clk 0:02:59.1]}
4. d4 {[%clk 0:02:58]} 4... d5 {[%clk 0:02:59.6]} 5. e5 {[%clk 0:02:56.1]} 5...
Bd7 {[%clk 0:02:59.8]} 6. Bd3 {[%clk 0:02:49]} 6... Nc6 {[%clk 0:02:59.8]} 7. a3
{[%clk 0:02:43.2]} 7... Qb6 {[%clk 0:02:55.9]} 8. O-O {[%clk 0:02:41.5]} 8...
cxd4 {[%clk 0:02:55.4]} 9. Re1 {[%clk 0:02:39.4]} 9... dxc3 {[%clk 0:02:47.8]}
10. Nxc3 {[%clk 0:02:40.3]} 10... Bc5 {[%clk 0:02:47.9]} 11. Re2 {[%clk
0:01:32.6]} 11... Nd4 {[%clk 0:02:47.4]} 12. Nxd4 {[%clk 0:01:32.5]} 12... Bxd4
{[%clk 0:02:48.3]} 13. Bf4 {[%clk 0:01:31.4]} 13... Ne7 {[%clk 0:02:45.1]} 14.
Rc1 {[%clk 0:01:31.4]} 14... Rc8 {[%clk 0:02:41.2]} 15. h4 {[%clk 0:01:29]}
15... O-O {[%clk 0:02:22.6]} 16. h5 {[%clk 0:01:28.8]} 16... f6 {[%clk
0:02:19.5]} 17. Qd2 {[%clk 0:01:20.2]} 17... Nc6 {[%clk 0:01:51.7]} 18. exf6
{[%clk 0:01:17.8]} 18... Rxf6 {[%clk 0:01:52]} 19. Bg5 {[%clk 0:01:15.2]} 19...
Rf7 {[%clk 0:01:47.1]} 20. Bb1 {[%clk 0:01:13.1]} 20... h6 {[%clk 0:01:43.5]}
21. Bh4 {[%clk 0:00:54.8]} 21... Bf6 {[%clk 0:01:25.1]} 22. Qd3 {[%clk
0:00:48.7]} 22... Bxh4 {[%clk 0:01:18.8]} 23. Qh7+ {[%clk 0:00:48.4]} 23... Kf8
{[%clk 0:01:18.7]} 24. Nxd5 {[%clk 0:00:43.6]} 24... Qxf2+ {[%clk 0:01:10.8]}
25. Kh1 {[%clk 0:00:39.2]} 25... Ne7 {[%clk 0:00:23.1]} 26. Rxc8+ {[%clk
0:00:25.7]} 26... Bxc8 {[%clk 0:00:22.1]} 27. Qh8+ {[%clk 0:00:22.5]} 27... Ng8
{[%clk 0:00:21.1]} 28. Rxf2 {[%clk 0:00:23.1]} 28... Rxf2 {[%clk 0:00:19.3]} 29.
Bh7 {[%clk 0:00:23.4]} 29... exd5 {[%clk 0:00:08.3]} 30. Qxg8+ {[%clk
0:00:23.3]} 30... Ke7 {[%clk 0:00:08.9]} 31. Qxc8 {[%clk 0:00:22.8]} 31... Bg3
{[%clk 0:00:07]} 32. Qxb7+ {[%clk 0:00:21.3]} 32... Kf6 {[%clk 0:00:05.3]} 33.
Qxa6+ {[%clk 0:00:14.3]} 33... Ke5 {[%clk 0:00:05.7]} 34. Qd3 {[%clk 0:00:13.8]}
34... Kf4 {[%clk 0:00:03.5]} 35. Qd4+ {[%clk 0:00:13.9]} 35... Kg5 {[%clk
0:00:03.5]} 36. Bd3 {[%clk 0:00:10.8]} 36... Rd2 {[%clk 0:00:01.9]} 37. Qe3+
{[%clk 0:00:10.6]} 37... Bf4 {[%clk 0:00:02]} 38. Qf3 {[%clk 0:00:07.7]} 38...
d4 {[%clk 0:00:02.1]} 39. g3 {[%clk 0:00:07.7]} 1-0

[Event "Early-Titled-Tuesday-Blitz-March-05-2024"]
[Site "Chess.com"]
[Date "2024.03.05"]
[Round "4"]
[White "tetrix83"]
[Black "xamax2000"]
[Result "1-0"]
[WhiteElo "2624"]
[BlackElo "2924"]
[TimeControl "180+1"]
[EndTime "8:42:09 PST"]
[Termination "tetrix83 won by resignation"]

1. e4 {[%clk 0:03:00.2]} 1... e5 {[%clk 0:02:38.8]} 2. Nf3 {[%clk 0:02:56.5]}
2... Nc6 {[%clk 0:02:39.3]} 3. Bb5 {[%clk 0:02:56.4]} 3... a6 {[%clk 0:02:39.9]}
4. Bxc6 {[%clk 0:02:56.7]} 4... dxc6 {[%clk 0:02:40.1]} 5. O-O {[%clk
0:02:57.5]} 5... Qf6 {[%clk 0:02:35.3]} 6. d4 {[%clk 0:02:56.6]} 6... exd4
{[%clk 0:02:36.2]} 7. Bg5 {[%clk 0:02:56.7]} 7... Qd6 {[%clk 0:02:36.7]} 8. Qxd4
{[%clk 0:02:57.3]} 8... Qxd4 {[%clk 0:02:33.3]} 9. Nxd4 {[%clk 0:02:56.8]} 9...
c5 {[%clk 0:02:31.6]} 10. Ne2 {[%clk 0:02:53]} 10... Be6 {[%clk 0:02:26]} 11.
Nbc3 {[%clk 0:02:51.9]} 11... f6 {[%clk 0:02:25.5]} 12. Bf4 {[%clk 0:02:51.5]}
12... O-O-O {[%clk 0:02:25.7]} 13. Rad1 {[%clk 0:02:51.1]} 13... Rxd1 {[%clk
0:02:25.6]} 14. Rxd1 {[%clk 0:02:50.7]} 14... Ne7 {[%clk 0:02:26.1]} 15. Bg3
{[%clk 0:02:50.1]} 15... g5 {[%clk 0:02:22.3]} 16. f4 {[%clk 0:02:30.5]} 16...
Nc6 {[%clk 0:02:16.7]} 17. f5 {[%clk 0:02:29.6]} 17... Bf7 {[%clk 0:02:11.9]}
18. Nd5 {[%clk 0:02:29.7]} 18... Bxd5 {[%clk 0:02:08.3]} 19. exd5 {[%clk
0:02:23.7]} 19... Ne7 {[%clk 0:01:46.8]} 20. d6 {[%clk 0:02:19.5]} 20... cxd6
{[%clk 0:01:47.7]} 21. Rxd6 {[%clk 0:02:17.4]} 21... Nxf5 {[%clk 0:01:47.8]} 22.
Rxf6 {[%clk 0:02:15.8]} 22... Nxg3 {[%clk 0:01:46.3]} 23. Nxg3 {[%clk
0:02:15.5]} 23... Kd7 {[%clk 0:01:19]} 24. Rf7+ {[%clk 0:02:06.8]} 24... Kc6
{[%clk 0:01:18.3]} 25. Nf5 {[%clk 0:02:06.9]} 25... c4 {[%clk 0:01:14.2]} 26.
Nd4+ {[%clk 0:01:58.7]} 26... Kb6 {[%clk 0:00:28.3]} 27. Rf6+ {[%clk 0:01:47.2]}
27... Ka7 {[%clk 0:00:22.9]} 28. Ne6 {[%clk 0:01:21.8]} 28... Be7 {[%clk
0:00:22]} 29. Rf7 {[%clk 0:01:20.4]} 29... Bd8 {[%clk 0:00:03.9]} 30. Kf1 {[%clk
0:01:02.6]} 30... h6 {[%clk 0:00:03.3]} 31. Nc5 {[%clk 0:00:58.7]} 31... Kb6
{[%clk 0:00:03.5]} 32. Nxb7 {[%clk 0:00:45]} 32... Bc7 {[%clk 0:00:04]} 33. Na5
{[%clk 0:00:45.1]} 33... Kxa5 {[%clk 0:00:04.5]} 34. Rxc7 {[%clk 0:00:44.8]}
34... Rb8 {[%clk 0:00:03.1]} 35. b3 {[%clk 0:00:44.6]} 35... cxb3 {[%clk
0:00:03.6]} 36. axb3 {[%clk 0:00:44.3]} 36... Kb4 {[%clk 0:00:04.1]} 37. Rc4+
{[%clk 0:00:42.1]} 37... Kb5 {[%clk 0:00:03.8]} 38. Kf2 {[%clk 0:00:38.8]} 38...
Rf8+ {[%clk 0:00:03.4]} 39. Kg3 {[%clk 0:00:38.8]} 39... Rf1 {[%clk 0:00:03.2]}
40. h4 {[%clk 0:00:26]} 40... gxh4+ {[%clk 0:00:03.3]} 41. Kxh4 {[%clk
0:00:25.9]} 41... Rf5 {[%clk 0:00:03.5]} 42. g4 {[%clk 0:00:24.8]} 42... Re5
{[%clk 0:00:03.9]} 43. Rf4 {[%clk 0:00:22.1]} 43... Rc5 {[%clk 0:00:04.1]} 44.
Rf5 {[%clk 0:00:21.4]} 44... Rxf5 {[%clk 0:00:02.4]} 45. gxf5 {[%clk 0:00:21.6]}
1-0

[Event "Early-Titled-Tuesday-Blitz-March-05-2024"]
[Site "Chess.com"]
[Date "2024.03.05"]
[Round "4"]
[White "SnekkerAndersen"]
[Black "Hurghada"]
[Result "1-0"]
[WhiteElo "2630"]
[BlackElo "2393"]
[TimeControl "180+1"]
[EndTime "8:42:11 PST"]
[Termination "SnekkerAndersen won by resignation"]

1. c4 {[%clk 0:02:59.2]} 1... e6 {[%clk 0:02:59.7]} 2. Nc3 {[%clk 0:02:58.5]}
2... d5 {[%clk 0:02:59.6]} 3. d4 {[%clk 0:02:56.1]} 3... c6 {[%clk 0:02:58.9]}
4. e3 {[%clk 0:02:54.4]} 4... Nf6 {[%clk 0:02:58.1]} 5. Nf3 {[%clk 0:02:55.1]}
5... a6 {[%clk 0:02:58.1]} 6. Bd3 {[%clk 0:02:54.8]} 6... dxc4 {[%clk
0:02:40.1]} 7. Bxc4 {[%clk 0:02:55.7]} 7... b5 {[%clk 0:02:39.9]} 8. Bb3 {[%clk
0:02:56.2]} 8... Bb7 {[%clk 0:02:40.5]} 9. O-O {[%clk 0:02:55.1]} 9... Nbd7
{[%clk 0:02:40.8]} 10. Qe2 {[%clk 0:02:54.8]} 10... c5 {[%clk 0:02:40.2]} 11.
Rd1 {[%clk 0:02:54.7]} 11... c4 {[%clk 0:02:38.2]} 12. Bc2 {[%clk 0:02:54.9]}
12... Be7 {[%clk 0:02:38.7]} 13. e4 {[%clk 0:02:53.4]} 13... O-O {[%clk
0:02:38.5]} 14. e5 {[%clk 0:02:49.6]} 14... Nd5 {[%clk 0:02:38.6]} 15. Ne4
{[%clk 0:02:50.2]} 15... h6 {[%clk 0:02:35.5]} 16. a3 {[%clk 0:02:34.7]} 16...
Re8 {[%clk 0:02:34.3]} 17. Ng3 {[%clk 0:02:31.3]} 17... Qb6 {[%clk 0:02:32]} 18.
Qe4 {[%clk 0:02:29.7]} 18... Nf8 {[%clk 0:02:31.7]} 19. Qg4 {[%clk 0:02:30]}
19... f5 {[%clk 0:02:13.3]} 20. exf6 {[%clk 0:02:24.5]} 20... Nxf6 {[%clk
0:02:12.4]} 21. Qh3 {[%clk 0:02:18.8]} 21... Bxf3 {[%clk 0:02:07]} 22. gxf3
{[%clk 0:02:18.5]} 22... Rad8 {[%clk 0:02:01.2]} 23. Be3 {[%clk 0:02:18.5]}
23... Nd5 {[%clk 0:01:42.8]} 24. Qg4 {[%clk 0:02:11]} 24... Nf6 {[%clk
0:01:35.8]} 25. Qh3 {[%clk 0:02:10.2]} 25... Nd5 {[%clk 0:01:36.1]} 26. Kh1
{[%clk 0:02:09.9]} 26... b4 {[%clk 0:01:27.8]} 27. axb4 {[%clk 0:02:09.5]} 27...
Nxb4 {[%clk 0:01:22.3]} 28. Be4 {[%clk 0:02:09.7]} 28... Nd5 {[%clk 0:01:19.7]}
29. Rg1 {[%clk 0:02:06.8]} 29... Nxe3 {[%clk 0:01:09.8]} 30. fxe3 {[%clk
0:02:05.9]} 30... Qxb2 {[%clk 0:01:09.1]} 31. Nh5 {[%clk 0:02:04.7]} 31... g5
{[%clk 0:01:01.5]} 32. Rxa6 {[%clk 0:01:55.5]} 32... Ra8 {[%clk 0:00:55.9]} 33.
Rxe6 {[%clk 0:01:54.8]} 33... Ra1 {[%clk 0:00:54.4]} 34. Nf6+ {[%clk 0:01:43.2]}
34... Bxf6 {[%clk 0:00:49.1]} 35. Rxe8 {[%clk 0:01:42.7]} 35... Rxg1+ {[%clk
0:00:46.3]} 36. Kxg1 {[%clk 0:01:43.6]} 36... Qc1+ {[%clk 0:00:31.5]} 37. Kg2
{[%clk 0:01:33.1]} 37... Qd2+ {[%clk 0:00:31.2]} 38. Kg3 {[%clk 0:01:31.2]}
38... Kg7 {[%clk 0:00:12.7]} 39. Qf1 {[%clk 0:01:19.2]} 39... Qxe3 {[%clk
0:00:11]} 40. Qxc4 {[%clk 0:00:55.8]} 40... Qf4+ {[%clk 0:00:10.4]} 41. Kg2
{[%clk 0:00:54.3]} 41... Qd2+ {[%clk 0:00:09.5]} 42. Kf1 {[%clk 0:00:54.8]}
42... Qd1+ {[%clk 0:00:07.8]} 43. Kg2 {[%clk 0:00:53.6]} 43... Qd2+ {[%clk
0:00:08.2]} 44. Kh3 {[%clk 0:00:52.6]} 44... Qf4 {[%clk 0:00:02.8]} 45. Qd5
{[%clk 0:00:38.1]} 45... g4+ {[%clk 0:00:03.1]} 46. fxg4 {[%clk 0:00:38.3]}
46... Qf1+ {[%clk 0:00:03.5]} 47. Bg2 {[%clk 0:00:37.4]} 47... Qd3+ {[%clk
0:00:03.7]} 48. Qf3 {[%clk 0:00:36.7]} 48... Qxf3+ {[%clk 0:00:03.7]} 49. Bxf3
{[%clk 0:00:36.6]} 49... Ng6 {[%clk 0:00:04.5]} 50. Re4 {[%clk 0:00:32.8]} 50...
Bg5 {[%clk 0:00:04]} 51. Kg3 {[%clk 0:00:32]} 51... Nf4 {[%clk 0:00:04.9]} 52.
Rxf4 {[%clk 0:00:32]} 1-0

[Event "Early-Titled-Tuesday-Blitz-March-05-2024"]
[Site "Chess.com"]
[Date "2024.03.05"]
[Round "4"]
[White "Eagle_2019"]
[Black "ukchessbomber"]
[Result "1-0"]
[WhiteElo "2868"]
[BlackElo "2655"]
[TimeControl "180+1"]
[EndTime "8:42:12 PST"]
[Termination "Eagle_2019 won by resignation"]

1. Nf3 {[%clk 0:03:00.9]} 1... b6 {[%clk 0:03:00.9]} 2. g3 {[%clk 0:03:00.9]}
2... Bb7 {[%clk 0:03:01.8]} 3. Bg2 {[%clk 0:03:01.3]} 3... g6 {[%clk 0:03:02.6]}
4. O-O {[%clk 0:03:01.6]} 4... Bg7 {[%clk 0:03:03.3]} 5. d3 {[%clk 0:03:01.9]}
5... c5 {[%clk 0:03:03.5]} 6. e4 {[%clk 0:03:01.5]} 6... e6 {[%clk 0:03:03.9]}
7. Nbd2 {[%clk 0:02:59.1]} 7... Ne7 {[%clk 0:03:04.3]} 8. e5 {[%clk 0:02:58.9]}
8... O-O {[%clk 0:03:04.1]} 9. Nc4 {[%clk 0:02:58.4]} 9... Nf5 {[%clk
0:03:03.3]} 10. Bg5 {[%clk 0:02:54.7]} 10... f6 {[%clk 0:03:01.1]} 11. exf6
{[%clk 0:02:43.2]} 11... Bxf6 {[%clk 0:03:02]} 12. Bxf6 {[%clk 0:02:43.5]} 12...
Qxf6 {[%clk 0:03:00.6]} 13. c3 {[%clk 0:02:41.3]} 13... Nc6 {[%clk 0:02:45.5]}
14. Qe2 {[%clk 0:02:37.6]} 14... b5 {[%clk 0:02:14.1]} 15. Ncd2 {[%clk
0:02:26.5]} 15... d5 {[%clk 0:02:05.5]} 16. Rfe1 {[%clk 0:02:23.9]} 16... Rfe8
{[%clk 0:02:05.4]} 17. a4 {[%clk 0:02:22.5]} 17... b4 {[%clk 0:01:58.2]} 18. Ne5
{[%clk 0:02:21.8]} 18... bxc3 {[%clk 0:01:07.2]} 19. bxc3 {[%clk 0:02:19.4]}
19... Nxe5 {[%clk 0:01:07.6]} 20. Qxe5 {[%clk 0:02:18.8]} 20... Qxe5 {[%clk
0:01:08.5]} 21. Rxe5 {[%clk 0:02:19.7]} 21... Kf7 {[%clk 0:00:37.2]} 22. f4
{[%clk 0:02:18.5]} 22... Bc6 {[%clk 0:00:33.4]} 23. Nf3 {[%clk 0:02:12.7]} 23...
h6 {[%clk 0:00:29.3]} 24. Re2 {[%clk 0:02:08.9]} 24... Rec8 {[%clk 0:00:23.3]}
25. Rb1 {[%clk 0:01:54.9]} 25... Kf6 {[%clk 0:00:06.9]} 26. a5 {[%clk
0:01:52.8]} 26... Rab8 {[%clk 0:00:06.6]} 27. Rbe1 {[%clk 0:01:52.8]} 27... Ng7
{[%clk 0:00:04.5]} 28. Ne5 {[%clk 0:01:51.1]} 28... Be8 {[%clk 0:00:04.9]} 29.
Ng4+ {[%clk 0:01:50.8]} 29... Kf7 {[%clk 0:00:02.9]} 30. Nxh6+ {[%clk
0:01:50.8]} 30... Kf8 {[%clk 0:00:03.5]} 31. Ng4 {[%clk 0:01:39.1]} 31... Rb3
{[%clk 0:00:03.7]} 32. c4 {[%clk 0:01:33.3]} 32... Rxd3 {[%clk 0:00:02.8]} 33.
Ne5 {[%clk 0:01:32.7]} 33... Rd4 {[%clk 0:00:01.8]} 34. cxd5 {[%clk 0:01:32.5]}
34... exd5 {[%clk 0:00:02.7]} 35. Rb2 {[%clk 0:01:29.1]} 35... c4 {[%clk
0:00:02.6]} 36. Rc1 {[%clk 0:01:04]} 36... Nf5 {[%clk 0:00:02.8]} 37. Rc3 {[%clk
0:00:52.7]} 37... Rd1+ {[%clk 0:00:02.5]} 38. Kf2 {[%clk 0:00:53]} 38... Nd6
{[%clk 0:00:02.2]} 39. Bf3 {[%clk 0:00:47.6]} 39... Rd4 {[%clk 0:00:01.9]} 40.
Rcc2 {[%clk 0:00:33]} 40... Nb5 {[%clk 0:00:01.5]} 41. Ke3 {[%clk 0:00:29]}
41... c3 {[%clk 0:00:01.2]} 42. Rxb5 {[%clk 0:00:28.8]} 42... Re4+ {[%clk
0:00:01.2]} 43. Bxe4 {[%clk 0:00:28.8]} 43... Bxb5 {[%clk 0:00:01.5]} 44. Bxg6
{[%clk 0:00:27.2]} 44... Ba4 {[%clk 0:00:01.9]} 45. Rc1 {[%clk 0:00:27.2]} 45...
c2 {[%clk 0:00:02.3]} 46. Kd2 {[%clk 0:00:27.2]} 1-0

[Event "Early-Titled-Tuesday-Blitz-March-05-2024"]
[Site "Chess.com"]
[Date "2024.03.05"]
[Round "4"]
[White "jk13"]
[Black "secrethawk1"]
[Result "1-0"]
[WhiteElo "2686"]
[BlackElo "2492"]
[TimeControl "180+1"]
[EndTime "8:42:13 PST"]
[Termination "jk13 won by checkmate"]

1. e4 {[%clk 0:03:00.9]} 1... c5 {[%clk 0:02:53]} 2. c3 {[%clk 0:03:01]} 2... d5
{[%clk 0:02:52.8]} 3. exd5 {[%clk 0:03:01.5]} 3... Qxd5 {[%clk 0:02:53]} 4. d4
{[%clk 0:03:02.4]} 4... Nf6 {[%clk 0:02:52.3]} 5. Nf3 {[%clk 0:03:03.3]} 5...
Bg4 {[%clk 0:02:50.9]} 6. Nbd2 {[%clk 0:03:03.5]} 6... Nc6 {[%clk 0:02:49.1]} 7.
Bc4 {[%clk 0:03:03.8]} 7... Qd8 {[%clk 0:02:47.8]} 8. Qb3 {[%clk 0:03:02.1]}
8... e6 {[%clk 0:02:43]} 9. Qxb7 {[%clk 0:03:00.6]} 9... Qc8 {[%clk 0:02:29.3]}
10. Ba6 {[%clk 0:03:00]} 10... Ne7 {[%clk 0:02:22.7]} 11. Bb5+ {[%clk
0:02:50.4]} 11... Kd8 {[%clk 0:02:20]} 12. Qxc8+ {[%clk 0:02:45.1]} 12... Nxc8
{[%clk 0:02:20.9]} 13. Ne5 {[%clk 0:02:42]} 13... Bh5 {[%clk 0:02:17.6]} 14. Nb3
{[%clk 0:02:36.9]} 14... cxd4 {[%clk 0:02:14.3]} 15. Nxd4 {[%clk 0:02:36.5]}
15... Nd6 {[%clk 0:02:13.4]} 16. Be2 {[%clk 0:02:18.5]} 16... Bxe2 {[%clk
0:02:04.4]} 17. Kxe2 {[%clk 0:02:19.4]} 17... Ke8 {[%clk 0:02:03.6]} 18. c4
{[%clk 0:02:15.4]} 18... Nd7 {[%clk 0:01:57]} 19. Nxd7 {[%clk 0:02:14.7]} 19...
Kxd7 {[%clk 0:01:57.9]} 20. b3 {[%clk 0:02:14.9]} 20... Be7 {[%clk 0:01:54.3]}
21. Be3 {[%clk 0:02:12.1]} 21... Rac8 {[%clk 0:01:51.7]} 22. Rhd1 {[%clk
0:02:12.4]} 22... a6 {[%clk 0:01:49.3]} 23. Nf3 {[%clk 0:02:02]} 23... Kc7
{[%clk 0:01:46.7]} 24. Rd3 {[%clk 0:01:56.2]} 24... f6 {[%clk 0:01:41.9]} 25.
Rad1 {[%clk 0:01:52.6]} 25... e5 {[%clk 0:01:39.4]} 26. Rd5 {[%clk 0:01:37.2]}
26... Rhd8 {[%clk 0:01:34.7]} 27. g4 {[%clk 0:01:25.9]} 27... Ne4 {[%clk
0:01:21.4]} 28. Rxd8 {[%clk 0:01:23.7]} 28... Rxd8 {[%clk 0:01:20.4]} 29. Rxd8
{[%clk 0:01:23.4]} 29... Bxd8 {[%clk 0:01:18.1]} 30. Kd3 {[%clk 0:01:22.9]}
30... Nd6 {[%clk 0:01:17.8]} 31. Nd2 {[%clk 0:01:09.7]} 31... Kc6 {[%clk
0:01:12]} 32. Ne4 {[%clk 0:01:08.4]} 32... Nb7 {[%clk 0:01:09.8]} 33. b4 {[%clk
0:01:07.1]} 33... Be7 {[%clk 0:01:08.7]} 34. Kc3 {[%clk 0:01:06.2]} 34... Nd8
{[%clk 0:00:59.6]} 35. a4 {[%clk 0:01:05.7]} 35... Ne6 {[%clk 0:00:57.6]} 36.
b5+ {[%clk 0:01:05.8]} 36... axb5 {[%clk 0:00:57.3]} 37. axb5+ {[%clk
0:01:01.3]} 37... Kc7 {[%clk 0:00:57.2]} 38. c5 {[%clk 0:01:01.2]} 38... g6
{[%clk 0:00:54.8]} 39. Kc4 {[%clk 0:01:00.6]} 39... f5 {[%clk 0:00:53]} 40. gxf5
{[%clk 0:01:01.5]} 40... gxf5 {[%clk 0:00:53.7]} 41. Nc3 {[%clk 0:01:01.4]}
41... f4 {[%clk 0:00:49]} 42. Nd5+ {[%clk 0:01:01.9]} 42... Kd7 {[%clk
0:00:42.8]} 43. c6+ {[%clk 0:00:59.7]} 43... Ke8 {[%clk 0:00:40.7]} 44. Ba7
{[%clk 0:00:53.8]} 44... Bd6 {[%clk 0:00:36]} 45. b6 {[%clk 0:00:49.9]} 45...
Nc5 {[%clk 0:00:05.2]} 46. b7 {[%clk 0:00:41.6]} 46... Na6 {[%clk 0:00:04.4]}
47. Kb5 {[%clk 0:00:39.3]} 47... Nb8 {[%clk 0:00:04]} 48. Bxb8 {[%clk
0:00:38.6]} 48... Bxb8 {[%clk 0:00:04.9]} 49. c7 {[%clk 0:00:38.8]} 49... Bxc7
{[%clk 0:00:03.9]} 50. Nxc7+ {[%clk 0:00:39.1]} 50... Kf7 {[%clk 0:00:04.8]} 51.
b8=Q {[%clk 0:00:39.8]} 51... Kg6 {[%clk 0:00:05.7]} 52. Qe8+ {[%clk 0:00:39.9]}
52... Kg5 {[%clk 0:00:05.8]} 53. Qxe5+ {[%clk 0:00:40.1]} 53... Kg4 {[%clk
0:00:06.7]} 54. Ne6 {[%clk 0:00:39.5]} 54... Kf3 {[%clk 0:00:07.6]} 55. Qxf4+
{[%clk 0:00:39.7]} 55... Kg2 {[%clk 0:00:08]} 56. Qg4+ {[%clk 0:00:39.7]} 56...
Kh1 {[%clk 0:00:08.9]} 57. f4 {[%clk 0:00:39.6]} 57... h5 {[%clk 0:00:09.8]} 58.
Qg5 {[%clk 0:00:39.3]} 58... h4 {[%clk 0:00:10.7]} 59. f5 {[%clk 0:00:39.5]}
59... h3 {[%clk 0:00:11.6]} 60. f6 {[%clk 0:00:39.5]} 60... Kxh2 {[%clk
0:00:12.1]} 61. f7 {[%clk 0:00:40]} 61... Kh1 {[%clk 0:00:13]} 62. f8=Q {[%clk
0:00:40.3]} 62... h2 {[%clk 0:00:13.9]} 63. Qf3# {[%clk 0:00:40.4]} 1-0

[Event "Early-Titled-Tuesday-Blitz-March-05-2024"]
[Site "Chess.com"]
[Date "2024.03.05"]
[Round "4"]
[White "Akylbek2021"]
[Black "MaxLeto"]
[Result "1-0"]
[WhiteElo "2302"]
[BlackElo "2466"]
[TimeControl "180+1"]
[EndTime "8:42:13 PST"]
[Termination "Akylbek2021 won on time"]

1. g4 {[%clk 0:02:59.7]} 1... d5 {[%clk 0:02:54.3]} 2. Bg2 {[%clk 0:02:59.1]}
2... Bxg4 {[%clk 0:02:54]} 3. c4 {[%clk 0:02:58.8]} 3... c6 {[%clk 0:02:53.1]}
4. cxd5 {[%clk 0:02:54.3]} 4... cxd5 {[%clk 0:02:51.7]} 5. Qb3 {[%clk
0:02:54.7]} 5... Nf6 {[%clk 0:02:47.8]} 6. Qxb7 {[%clk 0:02:50.9]} 6... Nbd7
{[%clk 0:02:48]} 7. d3 {[%clk 0:02:42.6]} 7... Rb8 {[%clk 0:02:24.1]} 8. Qxa7
{[%clk 0:02:37.9]} 8... e6 {[%clk 0:02:23.6]} 9. Qa4 {[%clk 0:02:29.7]} 9... Bd6
{[%clk 0:01:47.8]} 10. Nc3 {[%clk 0:02:27.7]} 10... O-O {[%clk 0:01:44.7]} 11.
Nf3 {[%clk 0:02:27.1]} 11... Nc5 {[%clk 0:01:31.3]} 12. Qc2 {[%clk 0:02:25.4]}
12... h6 {[%clk 0:01:25.2]} 13. Bd2 {[%clk 0:02:13.3]} 13... Qc7 {[%clk
0:01:24.6]} 14. Rc1 {[%clk 0:02:11.3]} 14... Rfc8 {[%clk 0:01:23.8]} 15. h3
{[%clk 0:02:06.2]} 15... Bh5 {[%clk 0:01:16.9]} 16. O-O {[%clk 0:02:01.5]} 16...
e5 {[%clk 0:01:04.8]} 17. d4 {[%clk 0:01:22.6]} 17... exd4 {[%clk 0:00:36.3]}
18. Nxd4 {[%clk 0:01:21.5]} 18... Qd7 {[%clk 0:00:37.2]} 19. Qf5 {[%clk
0:01:16.4]} 19... Ne6 {[%clk 0:00:32.5]} 20. Nxd5 {[%clk 0:01:04.8]} 20... Nxd5
{[%clk 0:00:31.8]} 21. Bxd5 {[%clk 0:01:00]} 21... Bg6 {[%clk 0:00:28.4]} 22.
Bxe6 {[%clk 0:00:30.4]} 22... Bxf5 {[%clk 0:00:13.3]} 23. Bxd7 {[%clk
0:00:30.3]} 23... Bxd7 {[%clk 0:00:14.2]} 24. b3 {[%clk 0:00:26.4]} 24... Bxh3
{[%clk 0:00:13.7]} 25. Rfd1 {[%clk 0:00:25.4]} 25... Be5 {[%clk 0:00:13.7]} 26.
Nc6 {[%clk 0:00:20.7]} 26... Rb5 {[%clk 0:00:04.2]} 27. Ne7+ {[%clk 0:00:20.3]}
27... Kh7 {[%clk 0:00:03.4]} 28. Nxc8 {[%clk 0:00:21.2]} 28... Bb8 {[%clk
0:00:02.4]} 29. Be3 {[%clk 0:00:15.5]} 29... Rh5 {[%clk 0:00:01.7]} 30. Ne7
{[%clk 0:00:14.1]} 30... Bg4 {[%clk 0:00:01.8]} 31. f3 {[%clk 0:00:12]} 31...
Be6 {[%clk 0:00:02.1]} 32. Nc6 {[%clk 0:00:10.3]} 32... Bg3 {[%clk 0:00:01.5]}
33. Bf2 {[%clk 0:00:09]} 33... Bd6 {[%clk 0:00:01.6]} 34. Rxd6 {[%clk
0:00:08.2]} 34... Rg5+ {[%clk 0:00:01.7]} 35. Kf1 {[%clk 0:00:08.5]} 35... h5
{[%clk 0:00:01.4]} 36. Ke1 {[%clk 0:00:08.9]} 36... Re5 {[%clk 0:00:01.1]} 37.
Rc3 {[%clk 0:00:08.4]} 1-0

[Event "Early-Titled-Tuesday-Blitz-March-05-2024"]
[Site "Chess.com"]
[Date "2024.03.05"]
[Round "4"]
[White "ozates"]
[Black "FlemingA"]
[Result "0-1"]
[WhiteElo "2597"]
[BlackElo "2455"]
[TimeControl "180+1"]
[EndTime "8:42:16 PST"]
[Termination "FlemingA won by resignation"]

1. e4 {[%clk 0:03:00.9]} 1... g6 {[%clk 0:02:59.9]} 2. d4 {[%clk 0:03:00.9]}
2... Bg7 {[%clk 0:02:59.6]} 3. Nc3 {[%clk 0:03:01.6]} 3... a6 {[%clk 0:02:58.9]}
4. f4 {[%clk 0:03:01]} 4... b5 {[%clk 0:02:58.5]} 5. Nf3 {[%clk 0:03:01]} 5...
Bb7 {[%clk 0:02:58.2]} 6. Bd3 {[%clk 0:03:00]} 6... Nf6 {[%clk 0:02:54.8]} 7. e5
{[%clk 0:02:59.8]} 7... Nd5 {[%clk 0:02:54.7]} 8. Nxd5 {[%clk 0:02:59.9]} 8...
Bxd5 {[%clk 0:02:55.6]} 9. a4 {[%clk 0:02:59.3]} 9... b4 {[%clk 0:02:54]} 10. a5
{[%clk 0:02:57.6]} 10... d6 {[%clk 0:02:47.3]} 11. O-O {[%clk 0:02:57.4]} 11...
Nd7 {[%clk 0:02:45.1]} 12. Qe2 {[%clk 0:02:50]} 12... c5 {[%clk 0:02:44.9]} 13.
c4 {[%clk 0:02:47.4]} 13... bxc3 {[%clk 0:02:40.7]} 14. bxc3 {[%clk 0:02:47.2]}
14... cxd4 {[%clk 0:02:32.6]} 15. cxd4 {[%clk 0:02:47.3]} 15... O-O {[%clk
0:02:32.6]} 16. Ba3 {[%clk 0:02:44.5]} 16... Re8 {[%clk 0:02:07.1]} 17. Bxa6
{[%clk 0:02:36.7]} 17... Qxa5 {[%clk 0:01:51.3]} 18. Bb5 {[%clk 0:02:35.2]}
18... Qc7 {[%clk 0:01:42.4]} 19. Rac1 {[%clk 0:02:32.1]} 19... Qb7 {[%clk
0:01:40.2]} 20. Rc3 {[%clk 0:02:14.3]} 20... Reb8 {[%clk 0:01:31.8]} 21. Bc4
{[%clk 0:01:59.1]} 21... Nb6 {[%clk 0:01:08.5]} 22. Bb5 {[%clk 0:01:49.1]} 22...
Na4 {[%clk 0:00:46.8]} 23. Bxa4 {[%clk 0:01:47.2]} 23... Rxa4 {[%clk 0:00:47.2]}
24. Rfc1 {[%clk 0:01:26]} 24... Qa7 {[%clk 0:00:32.7]} 25. Bb2 {[%clk
0:01:01.4]} 25... Qb7 {[%clk 0:00:20.8]} 26. Ba1 {[%clk 0:00:46.7]} 26... Ra2
{[%clk 0:00:12.6]} 27. Qe3 {[%clk 0:00:39.1]} 27... Qa6 {[%clk 0:00:10.1]} 28.
Qe1 {[%clk 0:00:29.6]} 28... Ra8 {[%clk 0:00:07]} 29. exd6 {[%clk 0:00:19.6]}
29... exd6 {[%clk 0:00:07.4]} 30. Re3 {[%clk 0:00:05.1]} 30... Rxa1 {[%clk
0:00:04.5]} 31. Re8+ {[%clk 0:00:05.7]} 31... Rxe8 {[%clk 0:00:02.8]} 32. Qxe8+
{[%clk 0:00:06.6]} 32... Bf8 {[%clk 0:00:03.3]} 33. Rxa1 {[%clk 0:00:06.4]}
33... Qxa1+ {[%clk 0:00:04.2]} 34. Kf2 {[%clk 0:00:06.5]} 34... Bxf3 {[%clk
0:00:04.1]} 35. Kxf3 {[%clk 0:00:07.4]} 35... Qxd4 {[%clk 0:00:04.3]} 36. Qd7
{[%clk 0:00:06.3]} 36... Qd5+ {[%clk 0:00:04.6]} 37. Kf2 {[%clk 0:00:06.5]}
37... Qe6 {[%clk 0:00:05.3]} 38. Qc6 {[%clk 0:00:06.2]} 38... h6 {[%clk
0:00:05.8]} 39. g3 {[%clk 0:00:06.6]} 39... Bg7 {[%clk 0:00:06.4]} 40. Qa8+
{[%clk 0:00:06.4]} 40... Kh7 {[%clk 0:00:06.8]} 41. Qc6 {[%clk 0:00:06.7]} 41...
d5 {[%clk 0:00:07.2]} 42. Qc2 {[%clk 0:00:06.3]} 42... Qe4 {[%clk 0:00:07.3]}
43. Qd2 {[%clk 0:00:05.9]} 43... Qd4+ {[%clk 0:00:07.2]} 0-1